[Event "FRA-ch Youth 2017"]
[Site "Belfort"]
[Date "2017.04.16"]
[Round "1"]
[White "Djidjeli, Sarah"]
[Black "Rozec, Mialy"]
[Result "*"]
[ECO "B10"]
[WhiteElo "1934"]
[BlackElo "1289"]
[Annotator "NA RC"]
[PlyCount "61"]
[EventDate "2017.??.??"]
[EventCountry "FRA"]
[SourceTitle "playchess.com"]
[Source "ChessBase"]
[SourceQuality "1"]
[TimeControl "5400+30"]

1. e4 {[%emt 0:00:00]} c6 {[%emt 0:00:10]} 2. Nc3 {[%emt 0:00:00]} g6 {[%emt 0:00:19]} 3. Nf3 {[%emt 0:00:12]} d5 {[%emt 0:01:09]} 4. exd5 {[%emt 0:02:25]} cxd5 {[%emt 0:00:37]} 5. Bb5+ {[%emt 0:02:28]} Bd7 {[%emt 0:12:30]} 6. Qe2 {[%emt 0:01:27]} Nf6 {[%emt 0:09:32]} 7. O-O {[%emt 0:03:56]} Bg7 {[%emt 0:12:24]} 8. Re1 {[%emt 0:04:43]} e6 {[%emt 0:03:32]} 9. d4 {[%emt 0:06:50]} O-O {[%emt 0:01:53]} 10. Bf4 {[%emt 0:03:01]} Qb6 {[%emt 0:03:14]} 11. a4 {[%emt 0:06:45]} a6 {[%emt 0:19:46]} 12. a5 {[%emt 0:08:16]} Bxb5 {[%emt 0:02:23]} 13. axb6 {[%emt 0:00:11]} Bxe2 {[%emt 0:00:44]} 14. Rxe2 {[%emt 0:00:12]} Nc6 {[%emt 0:01:32]} 15. Na4 {[%emt 0:03:32]} Ne4 {[%emt 0:03:02]} 16. c3 {[%emt 0:02:07]} Rac8 {[%emt 0:09:23]} 17. Nd2 {[%emt 0:05:42]} Nxd2 {[%emt 0:04:30]} 18. Rxd2 {[%emt 0:00:45]} Rfd8 {[%emt 0:00:40]} 19. Bc7 {[%emt 0:02:44]} Rd7 {[%emt 0:01:24]} 20. Nc5 {[%emt 0:00:20]} Rdxc7 {[%emt 0:00:18]} 21. bxc7 {[%emt 0:00:11]} Rxc7 {[%emt 0:00:15]} 22. g3 {[%emt 0:07:09]} Ne7 {[%emt 0:05:27]} 23. Ra3 {[%emt 0:02:22]} e5 {[%emt 0:01:12]} 24. Rb3 {[%emt 0:01:28]} exd4 {[%emt 0:00:53]} 25. cxd4 {[%emt 0:00:46]} Nf5 {[%emt 0:01:24]} 26. Rxb7 {[%emt 0:02:07]} Rxb7 {[%emt 0:00:31]} 27. Nxb7 {[%emt 0:00:04]} Nxd4 {[%emt 0:00:07]} 28. Kg2 {[%emt 0:00:48]} f5 {[%emt 0:01:05]} 29. h3 {[%emt 0:01:47]} Kf7 {[%emt 0:00:46]} 30. h4 {[%emt 0:01:18]} h6 {[%emt 0:02:30]} 31. Nd6+ *

[Event "FRA-ch Youth 2017"]
[Site "Belfort"]
[Date "2017.04.16"]
[Round "1"]
[White "Berriat, Diane"]
[Black "Afraoui, Anaelle"]
[Result "1-0"]
[ECO "E76"]
[WhiteElo "1611"]
[BlackElo "1977"]
[Annotator "NA RC"]
[PlyCount "37"]
[EventDate "2017.??.??"]
[EventCountry "FRA"]
[SourceTitle "playchess.com"]
[Source "ChessBase"]
[SourceQuality "1"]
[TimeControl "5400+30"]

1. d4 {[%emt 0:00:00]} Nf6 {[%emt 0:00:20]} 2. c4 {[%emt 0:00:00]} g6 {[%emt 0:00:35]} 3. Nc3 {[%emt 0:00:00]} Bg7 {[%emt 0:00:33]} 4. e4 {[%emt 0:00:00]} d6 {[%emt 0:00:16]} 5. f4 {[%emt 0:00:00]} O-O {[%emt 0:02:13]} 6. Nf3 {[%emt 0:02:46]} Nbd7 {[%emt 0:03:35]} 7. Bd3 {[%emt 0:11:47]} c5 {[%emt 0:02:42]} 8. d5 {[%emt 0:00:20]} e6 {[%emt 0:04:19]} 9. dxe6 {[%emt 0:06:34]} fxe6 {[%emt 0:00:09]} 10. O-O {[%emt 0:00:39]} Nb6 {[%emt 0:04:37]} 11. Qe2 {[%emt 0:10:18]} Kh8 $18 {[%emt 0:05:34]} (11... e5 $16) 12. e5 {[%emt 0:06:21]} dxe5 {[%emt 0:03:04]} 13. fxe5 {[%emt 0:00:16]} Ng4 {[%emt 0:12:54]} 14. Bg5 {[%emt 0:00:41]} Qd7 {[%emt 0:06:08]} 15. Rad1 {[%emt 0:02:10]} Nxe5 {[%emt 0:02:42]} 16. Nxe5 {[%emt 0:01:36]} Qd4+ {[%emt 0:00:43]} 17. Kh1 {[%emt 0:00:15]} Rxf1+ {[%emt 0:00:16]} 18. Rxf1 {[%emt 0:00:04]} Qxe5 {[%emt 0:01:45]} 19. Rf8+ {[%emt 0:00:12]} 1-0

[Event "FRA-ch Youth 2017"]
[Site "Belfort"]
[Date "2017.04.16"]
[Round "1"]
[White "Parlas, Helin"]
[Black "Vernet, Solene"]
[Result "*"]
[ECO "A37"]
[WhiteElo "1606"]
[BlackElo "1863"]
[Annotator "NA RC"]
[PlyCount "67"]
[EventDate "2017.??.??"]
[EventCountry "FRA"]
[SourceTitle "playchess.com"]
[Source "ChessBase"]
[SourceQuality "1"]
[TimeControl "5400+30"]

1. c4 {[%emt 0:00:00]} c5 {[%emt 0:00:05]} 2. g3 {[%emt 0:00:00]} g6 {[%emt 0:00:14]} 3. Bg2 {[%emt 0:00:00]} Bg7 {[%emt 0:00:07]} 4. Nf3 {[%emt 0:00:04]} Nc6 {[%emt 0:00:06]} 5. Nc3 {[%emt 0:00:04]} e5 {[%emt 0:00:36]} 6. e4 {[%emt 0:00:34]} d6 {[%emt 0:00:13]} 7. a3 {[%emt 0:02:00]} Be6 {[%emt 0:02:11]} 8. Nd5 {[%emt 0:12:16]} Nge7 {[%emt 0:01:03]} 9. O-O {[%emt 0:06:28]} O-O {[%emt 0:07:02]} 10. Rb1 {[%emt 0:03:39]} Rb8 {[%emt 0:01:24]} 11. Ng5 {[%emt 0:14:53]} Bd7 {[%emt 0:26:44]} 12. f4 {[%emt 0:03:01]} exf4 {[%emt 0:01:52]} 13. gxf4 {[%emt 0:00:18]} Nxd5 {[%emt 0:02:24]} 14. cxd5 {[%emt 0:00:19]} Nd4 {[%emt 0:00:24]} 15. b4 {[%emt 0:08:39]} cxb4 {[%emt 0:04:59]} 16. Rxb4 {[%emt 0:00:50]} a5 {[%emt 0:00:21]} 17. Rb1 {[%emt 0:00:43]} b5 {[%emt 0:00:33]} 18. Nf3 {[%emt 0:02:07]} Qb6 {[%emt 0:01:21]} 19. Kh1 {[%emt 0:00:31]} b4 {[%emt 0:02:15]} 20. axb4 {[%emt 0:01:01]} axb4 {[%emt 0:00:46]} 21. Nxd4 {[%emt 0:02:13]} Bxd4 {[%emt 0:04:03]} 22. Bb2 {[%emt 0:00:08]} Bb5 {[%emt 0:00:51]} 23. Rf3 {[%emt 0:01:10]} Bxb2 {[%emt 0:02:16]} 24. Rxb2 {[%emt 0:02:13]} Qd4 {[%emt 0:00:07]} 25. Qb3 {[%emt 0:08:22]} Qxe4 {[%emt 0:02:19]} 26. d3 {[%emt 0:00:25]} Qe1+ {[%emt 0:01:06]} 27. Rf1 {[%emt 0:01:09]} Qe7 {[%emt 0:08:06]} 28. Rbf2 {[%emt 0:03:47]} Bd7 {[%emt 0:01:00]} 29. d4 {[%emt 0:05:09]} Bf5 {[%emt 0:02:15]} 30. Rc1 {[%emt 0:01:45]} Rfc8 {[%emt 0:03:07]} 31. Rc6 {[%emt 0:03:42]} Bd7 {[%emt 0:01:04]} 32. Rxc8+ {[%emt 0:00:57]} Bxc8 {[%emt 0:00:04]} 33. h3 {[%emt 0:04:15]} Bf5 {[%emt 0:00:11]} 34. Qc4 {[%emt 0:01:19]} *

[Event "FRA-ch Youth 2017"]
[Site "Belfort"]
[Date "2017.04.16"]
[Round "1"]
[White "Spano, Aline"]
[Black "Rollot, Florence"]
[Result "*"]
[ECO "B01"]
[WhiteElo "1448"]
[BlackElo "1973"]
[Annotator "NA RC"]
[PlyCount "47"]
[EventDate "2017.??.??"]
[EventCountry "FRA"]
[SourceTitle "playchess.com"]
[Source "ChessBase"]
[SourceQuality "1"]
[TimeControl "5400+30"]

1. e4 {[%emt 0:00:00]} d5 {[%emt 0:00:08]} 2. exd5 {[%emt 0:00:18]} Qxd5 {[%emt 0:00:09]} 3. Nc3 {[%emt 0:00:40]} Qa5 {[%emt 0:00:08]} 4. d4 {[%emt 0:00:29]} Nf6 {[%emt 0:00:09]} 5. Bd2 {[%emt 0:01:05]} Bg4 {[%emt 0:00:23]} 6. Ne4 {[%emt 0:19:58]} Qh5 {[%emt 0:22:27]} 7. Nxf6+ {[%emt 0:01:48]} gxf6 {[%emt 0:00:43]} 8. Be2 {[%emt 0:02:42]} Rg8 {[%emt 0:03:57]} 9. Nf3 {[%emt 0:11:44]} Nc6 $15 {[%emt 0:01:34]} 10. Bc3 {[%emt 0:10:20]} O-O-O {[%emt 0:02:45]} 11. h3 {[%emt 0:02:07]} e5 {[%emt 0:04:17]} 12. Rg1 {[%emt 0:05:36]} Bxf3 {[%emt 0:03:39]} 13. Bxf3 {[%emt 0:00:41]} Qxh3 {[%emt 0:02:49]} 14. d5 {[%emt 0:09:32]} Nd4 {[%emt 0:05:20]} 15. Bxd4 {[%emt 0:02:10]} exd4 {[%emt 0:00:54]} 16. gxh3 {[%emt 0:08:53]} Rxg1+ {[%emt 0:00:09]} 17. Ke2 {[%emt 0:00:33]} Re8+ {[%emt 0:02:37]} 18. Kd3 {[%emt 0:01:13]} Rxd1+ {[%emt 0:00:12]} 19. Rxd1 {[%emt 0:00:15]} Bc5 {[%emt 0:00:20]} 20. Rg1 {[%emt 0:01:00]} Bf8 {[%emt 0:24:19]} 21. Kxd4 {[%emt 0:01:29]} Bh6 {[%emt 0:04:29]} 22. Bh5 {[%emt 0:01:52]} Kd7 {[%emt 0:06:18]} 23. Bxf7 {[%emt 0:04:23]} Re2 {[%emt 0:00:19]} 24. Be6+ {[%emt 0:00:47]} *

[Event "FRA-ch Youth 2017"]
[Site "Belfort"]
[Date "2017.04.16"]
[Round "1"]
[White "Braule-Debaecker, Emeline"]
[Black "Yuan, Beline"]
[Result "1-0"]
[ECO "B20"]
[WhiteElo "1287"]
[BlackElo "1845"]
[Annotator "NA RC"]
[PlyCount "54"]
[EventDate "2017.??.??"]
[EventCountry "FRA"]
[SourceTitle "playchess.com"]
[Source "ChessBase"]
[SourceQuality "1"]
[TimeControl "5400+30"]

1. e4 {[%emt 0:00:00]} c5 {[%emt 0:00:13]} 2. c4 {[%emt 0:00:04]} Nc6 {[%emt 0:02:10]} 3. Nc3 {[%emt 0:00:08]} g6 {[%emt 0:01:15]} 4. g3 {[%emt 0:00:18]} Bg7 {[%emt 0:00:18]} 5. Bg2 {[%emt 0:00:07]} e5 {[%emt 0:03:51]} 6. Nge2 {[%emt 0:00:12]} Nge7 {[%emt 0:01:37]} 7. O-O {[%emt 0:00:10]} O-O {[%emt 0:00:46]} 8. d3 {[%emt 0:00:06]} d6 {[%emt 0:02:14]} 9. Be3 {[%emt 0:01:45]} Nd4 {[%emt 0:09:22]} 10. f4 {[%emt 0:02:35]} Be6 {[%emt 0:09:23]} 11. Qd2 {[%emt 0:05:21]} a6 {[%emt 0:10:05]} 12. Nd5 {[%emt 0:01:19]} b5 {[%emt 0:05:51]} 13. fxe5 {[%emt 0:02:32]} dxe5 {[%emt 0:03:38]} 14. Nxd4 {[%emt 0:01:20]} cxd4 {[%emt 0:05:05]} 15. Bg5 {[%emt 0:00:46]} Bxd5 {[%emt 0:05:26]} 16. cxd5 {[%emt 0:00:54]} Qd6 {[%emt 0:02:10]} 17. Rac1 {[%emt 0:03:08]} Rac8 {[%emt 0:05:29]} 18. Rxc8 {[%emt 0:01:44]} Rxc8 {[%emt 0:01:55]} 19. Qf2 {[%emt 0:00:20]} Rf8 {[%emt 0:02:58]} 20. Bf6 {[%emt 0:04:02]} Bh6 {[%emt 0:04:35]} 21. Qc2 {[%emt 0:00:56]} Rb8 {[%emt 0:07:54]} 22. Bh3 {[%emt 0:04:05]} Kf8 {[%emt 0:05:16]} 23. Be6 {[%emt 0:02:12]} Ng8 {[%emt 0:03:29]} 24. Bxe5 {[%emt 0:01:11]} Qb6 {[%emt 0:02:49]} 25. Rxf7+ {[%emt 0:01:14]} Ke8 {[%emt 0:00:12]} 26. Bxb8 {[%emt 0:00:09]} Ne7 {[%emt 0:02:10]} 27. Qc4 Qd8 1-0

[Event "FRA-ch Youth 2017"]
[Site "Belfort"]
[Date "2017.04.17"]
[Round "2"]
[White "Popov, Konstantin"]
[Black "Trabet, Mathis"]
[Result "1-0"]
[ECO "B49"]
[WhiteElo "2026"]
[BlackElo "1675"]
[Annotator "NA RC"]
[PlyCount "49"]
[EventDate "2017.??.??"]
[EventCountry "FRA"]
[SourceTitle "playchess.com"]
[Source "ChessBase"]
[SourceQuality "1"]
[TimeControl "5400+30"]

1. e4 {[%emt 0:00:00]} c5 {[%emt 0:00:28]} 2. Nf3 {[%emt 0:00:23]} e6 {[%emt 0:03:24]} 3. d4 {[%emt 0:01:08]} cxd4 {[%emt 0:01:52]} 4. Nxd4 {[%emt 0:01:33]} Nc6 {[%emt 0:01:36]} 5. Be3 {[%emt 0:01:39]} Qc7 {[%emt 0:01:40]} 6. Nc3 {[%emt 0:05:18]} a6 {[%emt 0:02:31]} 7. Be2 {[%emt 0:03:24]} Nf6 {[%emt 0:04:44]} 8. O-O {[%emt 0:00:47]} Bb4 {[%emt 0:01:52]} 9. f3 {[%emt 0:14:39]} O-O {[%emt 0:04:37]} 10. Nb3 {[%emt 0:03:46]} h6 {[%emt 0:07:38] B49: Sicilian: Taimanov: 5 Nc3 Qc7 6 Be3 a6 7 Be2} (10... Bxc3 11. bxc3 d5 12. Bg5 Qe5 13. Bxf6 Qxf6 14. exd5 exd5 15. Qxd5 Qxc3 16. Bd3 Nb4 17. Qe4 g6 18. Rfd1 Bf5 19. Qxb7 Bxd3 20. cxd3 Nxd3 21. Qe4 Rad8 22. Rd2 Nc5 23. Qe1 Nxb3 {0-1 (23) Aiglon,L (2118)-Letreguilly,O (2308) France 2006}) 11. a3 {[%emt 0:01:36]} Bxc3 {[%emt 0:03:12]} 12. bxc3 {[%emt 0:00:09]} d5 {[%emt 0:00:52]} 13. Bd3 {[%emt 0:01:57]} Rd8 {[%emt 0:02:39]} 14. Qe1 $146 {[%emt 0:00:30]} (14. Qe2 Ne5 15. Bd4 Nxd3 16. cxd3 e5 17. Be3 Qxc3 18. Rab1 dxe4 19. dxe4 Be6 20. Rfc1 Qd3 21. Qe1 Bxb3 22. Rc3 Qxb1 {0-1 (22) Kaiser,G (1631)-Wilde,J (1619) Germany 2016}) 14... dxe4 {[%emt 0:07:25]} 15. Bxe4 {[%emt 0:03:06]} Nxe4 {[%emt 0:01:11]} 16. fxe4 {[%emt 0:00:03]} e5 {[%emt 0:02:08]} 17. Qg3 {[%emt 0:00:37] [#]} (17. Qf2 $11 {remains equal.}) 17... Kh8 $2 {[%emt 0:04:37]} ({Black should play} 17... Rd6 $1 $17) 18. Rf2 {[%emt 0:01:24]} (18. Qf2 $1 $14 {keeps the upper hand.}) 18... f6 {[%emt 0:02:37]} ({Black should play} 18... Rd6 $1 $15) 19. Qg6 {[%emt 0:10:14]} (19. Qh4 $11) 19... Ne7 {[%emt 0:05:18]} 20. Qf7 $15 {[%emt 0:00:48]} Rg8 {[%emt 0:06:12]} 21. Bc5 {[%emt 0:00:13]} b6 {[%emt 0:01:51]} 22. Qxe7 {[%emt 0:00:20]} Qc6 {[%emt 0:01:02]} 23. Qd6 {[%emt 0:00:53]} Qxd6 {[%emt 0:00:57]} 24. Bxd6 {[%emt 0:00:01]} Rd8 {[%emt 0:00:12]} 25. Bc7 {[%emt 0:00:06]} 1-0

[Event "FRA-ch Youth 2017"]
[Site "Belfort"]
[Date "2017.04.17"]
[Round "2"]
[White "Rollot, Florence"]
[Black "Goeau, Aurelice"]
[Result "1-0"]
[ECO "A05"]
[WhiteElo "1973"]
[BlackElo "1600"]
[Annotator "NA RC"]
[PlyCount "67"]
[EventDate "2017.??.??"]
[EventCountry "FRA"]
[SourceTitle "playchess.com"]
[Source "ChessBase"]
[SourceQuality "1"]
[TimeControl "5400+30"]

1. Nf3 {[%emt 0:00:00]} Nf6 {[%emt 0:00:33]} 2. c4 {[%emt 0:00:00]} g6 {[%emt 0:00:11]} 3. g3 {[%emt 0:00:00]} Bg7 {[%emt 0:00:10]} 4. Bg2 {[%emt 0:00:00]} O-O {[%emt 0:00:14]} 5. Nc3 {[%emt 0:00:15]} d6 {[%emt 0:00:16]} 6. O-O {[%emt 0:00:56]} Nbd7 {[%emt 0:00:20]} 7. Rb1 {[%emt 0:00:29]} e5 {[%emt 0:02:24]} 8. b4 {[%emt 0:01:52]} c6 {[%emt 0:07:43]} 9. d3 {[%emt 0:18:14]} Qe7 {[%emt 0:19:46] A24: English Opening vs King's Indian: Lines without ...Nc6} (9... d5 10. b5 dxc4 11. dxc4 Qa5 12. Qb3 Re8 13. Ng5 Nb8 14. Nce4 Qc7 15. Ba3 Nxe4 16. Nxe4 Rd8 17. Rfd1 Rxd1+ 18. Rxd1 cxb5 19. cxb5 Nd7 20. Rc1 {1-0 (20) Vidit,S (2565)-Narayanan,S (2483) Kocaeli 2013}) 10. Nd2 {[%emt 0:11:07]} Nb6 {[%emt 0:05:48]} 11. a4 {[%emt 0:05:14]} a5 $146 {[%emt 0:07:57]} (11... Be6 12. b5 Qc7 13. bxc6 bxc6 14. a5 Nbd7 15. Qa4 Rfc8 16. Ba3 d5 17. cxd5 Bxd5 {1-0 (31) Motzer,H (2021)-Cornaggia,R Arvier 2007}) 12. bxa5 {[%emt 0:08:51]} Rxa5 $2 {[%emt 0:00:09]} (12... Nbd7 $14) 13. Rxb6 {[%emt 0:00:28]} Qc7 {[%emt 0:02:00]} 14. Rb1 {[%emt 0:00:44]} Be6 {[%emt 0:05:37]} 15. Qb3 {[%emt 0:07:03]} Ra7 {[%emt 0:06:32]} 16. Qb6 {[%emt 0:05:32]} Qxb6 {[%emt 0:03:10]} 17. Rxb6 {[%emt 0:00:06]} Nd7 {[%emt 0:04:59]} 18. Rb4 {[%emt 0:01:16]} Rb8 {[%emt 0:04:28]} 19. Nde4 {[%emt 0:02:43]} Bf8 {[%emt 0:05:49]} 20. Be3 {[%emt 0:04:21]} Raa8 {[%emt 0:01:34]} 21. Ng5 {[%emt 0:01:25]} d5 $18 {[%emt 0:03:06]} 22. Rbb1 {[%emt 0:01:13]} d4 {[%emt 0:00:47]} 23. Nxe6 {[%emt 0:00:48]} fxe6 {[%emt 0:00:09]} 24. Ne4 {[%emt 0:02:50]} dxe3 {[%emt 0:02:59]} 25. fxe3 {[%emt 0:00:08]} Rxa4 {[%emt 0:06:29]} 26. Bh3 {[%emt 0:01:01]} Re8 {[%emt 0:01:42]} 27. Rxb7 {[%emt 0:01:01]} Re7 {[%emt 0:01:06]} 28. Rxd7 {[%emt 0:00:10]} Rxd7 {[%emt 0:01:01]} 29. Bxe6+ {[%emt 0:00:17]} Kg7 {[%emt 0:00:21]} 30. Bxd7 {[%emt 0:00:06]} Ra6 {[%emt 0:01:04]} 31. Ng5 {[%emt 0:00:28]} Bb4 {[%emt 0:01:59]} 32. Rf7+ {[%emt 0:00:49]} Kg8 {[%emt 0:00:29]} 33. Be6 {[%emt 0:00:59]} Kh8 {[%emt 0:01:13]} 34. Rxh7# 1-0

[Event "FRA-ch Youth 2017"]
[Site "Belfort"]
[Date "2017.04.17"]
[Round "2"]
[White "Roux, Baptiste"]
[Black "Bernard, Mathis"]
[Result "1-0"]
[ECO "B03"]
[WhiteElo "1934"]
[BlackElo "1631"]
[Annotator "NA RC"]
[PlyCount "46"]
[EventDate "2017.??.??"]
[EventCountry "FRA"]
[SourceTitle "playchess.com"]
[Source "ChessBase"]
[SourceQuality "1"]
[TimeControl "5400+30"]

1. e4 {[%emt 0:00:00]} Nf6 {[%emt 0:00:04]} 2. e5 {[%emt 0:00:00]} Nd5 {[%emt 0:00:05]} 3. d4 {[%emt 0:00:00]} d6 {[%emt 0:00:16]} 4. c4 {[%emt 0:00:00]} Nb6 {[%emt 0:00:06]} 5. exd6 {[%emt 0:00:09]} exd6 {[%emt 0:00:15]} 6. Nc3 {[%emt 0:01:28]} Be7 {[%emt 0:01:42]} 7. Bd3 {[%emt 0:02:06]} Nc6 {[%emt 0:01:55]} 8. Nge2 {[%emt 0:00:33]} Bg4 {[%emt 0:01:16]} 9. Be3 {[%emt 0:02:44] B03: Alekhine's Defence: Four Pawns Attack} (9. f3 Bh4+ 10. g3 Bxf3 11. O-O Bxe2 12. Qxe2+ Be7 13. Qe4 Qd7 14. Nd5 Nxd5 15. cxd5 Nb4 16. Bb1 Qb5 17. Bg5 {1-0 (31) Volokitin,A (2649)-Bortnyk,O (2581) Doha 2016}) 9... Bf6 {[%emt 0:02:09]} 10. Qb3 {[%emt 0:16:02]} Rb8 $146 {[%emt 0:08:17]} (10... O-O 11. O-O a5 12. a3 Bxe2 13. Nxe2 a4 14. Qc2 g6 15. f4 Re8 16. Bf2 d5 {1-0 (30) Gochelashvili,D (2439)-Tsiss,A (2282) Novomikhailovsky 2011}) 11. h3 {[%emt 0:01:23]} Bd7 {[%emt 0:03:49]} 12. Ne4 {[%emt 0:03:37]} Be7 {[%emt 0:02:15]} 13. O-O {[%emt 0:02:04]} O-O {[%emt 0:03:36]} 14. f4 {[%emt 0:05:05]} Bf5 {[%emt 0:08:10]} 15. Ng5 {[%emt 0:13:51]} ({Better is} 15. d5 $16) 15... Bg6 {[%emt 0:07:57]} (15... Na5 $15 16. Qc3 Bxd3 17. Qxd3 Bxg5 18. fxg5 Naxc4) 16. Bxg6 {[%emt 0:03:40]} hxg6 {[%emt 0:02:18]} 17. c5 {[%emt 0:04:07]} Nc8 {[%emt 0:05:04]} (17... dxc5 $15 18. dxc5 Na5) 18. d5 {[%emt 0:07:23]} Na5 $1 {[%emt 0:00:33]} 19. Qc3 {[%emt 0:00:22]} b6 $16 {[%emt 0:00:49]} (19... Re8 $1 $11 {keeps the balance.}) 20. Bd4 {[%emt 0:06:54]} Bf6 {[%emt 0:01:32]} 21. c6 {[%emt 0:03:08]} Bxd4+ {[%emt 0:05:17]} 22. Nxd4 {[%emt 0:00:28]} Ne7 {[%emt 0:02:03]} 23. Nde6 {[%emt 0:01:15]} Re8 1-0

[Event "FRA-ch Youth 2017"]
[Site "Belfort"]
[Date "2017.04.17"]
[Round "2"]
[White "Vigna, Liza"]
[Black "Tourneur, Cloe"]
[Result "1-0"]
[ECO "B01"]
[WhiteElo "1864"]
[BlackElo "1580"]
[Annotator "NA RC"]
[PlyCount "85"]
[EventDate "2017.??.??"]
[EventCountry "FRA"]
[SourceTitle "playchess.com"]
[Source "ChessBase"]
[SourceQuality "1"]
[TimeControl "5400+30"]

1. e4 {[%emt 0:00:42]} d5 {[%emt 0:00:11]} 2. exd5 {[%emt 0:00:14]} Nf6 {[%emt 0:00:09]} 3. Bb5+ {[%emt 0:04:02]} Bd7 {[%emt 0:01:50]} 4. Bc4 {[%emt 0:00:27]} Bg4 {[%emt 0:00:40]} 5. f3 {[%emt 0:02:07]} Bc8 {[%emt 0:02:02]} 6. Nc3 {[%emt 0:01:51]} Nbd7 {[%emt 0:00:40]} 7. d3 {[%emt 0:06:23] B01: Scandinavian Defence} (7. d4 Nb6 8. Bb3 a5 9. a4 Nbxd5 10. Nge2 e6 11. O-O Be7 12. Nxd5 Nxd5 13. Nf4 O-O 14. Nxd5 exd5 15. Bf4 Bf5 16. Kh1 {½-½ (41) Fluvia Poyatos,J (2448)-Krylov,M (2484) Platja d'Aro 2016}) 7... Nb6 {[%emt 0:01:56]} 8. Bb5+ {[%emt 0:00:16]} Bd7 {[%emt 0:00:14]} 9. Bc4 {[%emt 0:00:08]} Bc8 {[%emt 0:00:28]} 10. Bf4 {[%emt 0:01:44]} Nbxd5 {[%emt 0:15:24]} 11. Nxd5 {[%emt 0:01:05]} Nxd5 {[%emt 0:00:11]} 12. Bxd5 {[%emt 0:00:28]} Qxd5 {[%emt 0:00:13]} 13. Bxc7 {[%emt 0:00:18]} Qc5 {[%emt 0:00:20]} 14. Bg3 {[%emt 0:04:43]} Qb4+ {[%emt 0:00:36]} 15. c3 {[%emt 0:03:50]} Qxb2 {[%emt 0:01:56]} 16. Ne2 {[%emt 0:01:04]} b6 $146 {[%emt 0:04:32]} (16... Bf5) 17. O-O {[%emt 0:02:24]} Ba6 {[%emt 0:02:53]} 18. Rb1 {[%emt 0:16:59]} Qa3 {[%emt 0:00:47]} 19. Nd4 {[%emt 0:11:25]} e6 {[%emt 0:03:29]} 20. Be5 {[%emt 0:02:31]} Qa5 {[%emt 0:04:35]} 21. Re1 $11 {[%emt 0:05:07]} Rc8 {[%emt 0:06:18]} 22. Nf5 {[%emt 0:06:37]} f6 {[%emt 0:05:50]} 23. Bd4 {[%emt 0:04:05]} Kf7 {[%emt 0:04:49]} 24. Ng3 {[%emt 0:06:32]} Bc5 {[%emt 0:00:59]} 25. Ne2 {[%emt 0:05:43]} Rhe8 {[%emt 0:02:26]} 26. Kh1 {[%emt 0:00:50]} Bxd4 {[%emt 0:00:31]} 27. cxd4 {[%emt 0:02:49]} Re7 {[%emt 0:04:31]} 28. Qb3 {[%emt 0:01:46]} Qd2 {[%emt 0:02:26]} 29. Rbd1 {[%emt 0:01:21]} Qc2 {[%emt 0:00:57]} 30. Qa3 {[%emt 0:01:09]} Bb7 {[%emt 0:01:19]} 31. Nf4 {[%emt 0:00:29]} Qf2 {[%emt 0:02:39]} 32. d5 {[%emt 0:02:24]} e5 {[%emt 0:04:31]} 33. d6 {[%emt 0:00:13]} Rd7 {[%emt 0:00:30]} 34. Qb3+ {[%emt 0:00:11]} Kf8 {[%emt 0:03:02]} 35. Ne6+ {[%emt 0:00:12]} Ke8 {[%emt 0:00:24]} 36. Nc5 {[%emt 0:01:39]} Rxd6 {[%emt 0:08:05]} 37. Qg8+ {[%emt 0:00:09]} Ke7 {[%emt 0:00:26]} 38. Qxg7+ {[%emt 0:00:08]} Ke8 {[%emt 0:00:49]} 39. Nxb7 {[%emt 0:01:15]} Rdc6 {[%emt 0:02:06]} 40. Qg8+ {[%emt 0:01:33]} Ke7 {[%emt 0:00:11]} 41. Qxh7+ {[%emt 0:00:12]} Ke6 {[%emt 0:01:18]} 42. d4 {[%emt 0:00:25]} Rc2 {[%emt 0:01:29]} 43. d5# 1-0

[Event "FRA-ch Youth 2017"]
[Site "Belfort"]
[Date "2017.04.17"]
[Round "2"]
[White "Vernet, Solene"]
[Black "Saliou, Sarah"]
[Result "1-0"]
[ECO "E18"]
[WhiteElo "1863"]
[BlackElo "1684"]
[Annotator "NA RC"]
[PlyCount "45"]
[EventDate "2017.??.??"]
[EventCountry "FRA"]
[SourceTitle "playchess.com"]
[Source "ChessBase"]
[SourceQuality "1"]
[TimeControl "5400+30"]

1. d4 {[%emt 0:00:00]} Nf6 {[%emt 0:00:04]} 2. c4 {[%emt 0:00:00]} b6 {[%emt 0:00:07]} 3. Nf3 {[%emt 0:00:00]} Bb7 {[%emt 0:00:05]} 4. g3 {[%emt 0:05:57]} e6 {[%emt 0:00:25]} 5. Bg2 {[%emt 0:00:05]} Be7 {[%emt 0:00:20]} 6. O-O {[%emt 0:00:18]} O-O {[%emt 0:00:07]} 7. Nc3 {[%emt 0:01:04]} d6 {[%emt 0:04:06]} 8. Qc2 {[%emt 0:04:02]} Nbd7 {[%emt 0:02:48]} 9. Rd1 {[%emt 0:02:45]} Re8 {[%emt 0:04:43]} 10. e4 {[%emt 0:05:19]} Qc8 {[%emt 0:09:16]} 11. b3 {[%emt 0:09:53]} e5 {[%emt 0:07:24]} 12. Bb2 {[%emt 0:02:53]} Bf8 {[%emt 0:04:04]} 13. dxe5 {[%emt 0:05:23]} dxe5 {[%emt 0:00:38]} 14. Bh3 {[%emt 0:01:31]} Bc6 {[%emt 0:05:08]} 15. Nd5 {[%emt 0:01:51]} Qb7 {[%emt 0:09:01]} 16. Nxf6+ {[%emt 0:12:44]} ({Better is} 16. b4 $16) 16... Nxf6 {[%emt 0:00:10]} 17. Nxe5 {[%emt 0:00:22]} Bxe4 {[%emt 0:02:36]} 18. Qc3 {[%emt 0:00:23]} a5 $11 {[%emt 0:15:15]} 19. a3 {[%emt 0:05:46]} h6 {[%emt 0:16:28]} 20. Rd2 {[%emt 0:07:03]} Nh7 {[%emt 0:04:13]} 21. Nxf7 {[%emt 0:08:25]} Ng5 {[%emt 0:12:22]} 22. Nxg5 {[%emt 0:00:39]} hxg5 {[%emt 0:00:05]} 23. Rd7 {[%emt 0:00:11]} 1-0